[Event "*** SCC Grand Prix: Titled Tuesday Blitz"]
[Site "Chess.com"]
[Date "2020.06.02"]
[Round "10"]
[White "Omk124"]
[Black "Reader777"]
[Result "0-1"]
[WhiteElo "2444"]
[BlackElo "2600"]
[TimeControl "180+1"]
[EndTime "12:00:24 PDT"]
[Termination "Reader777 won by checkmate"]

1. e4 {[%clk 0:03:00.9]} 1... c5 {[%clk 0:02:59.8]} 2. Nf3 {[%clk 0:03:00.9]}
2... d6 {[%clk 0:02:59.1]} 3. d4 {[%clk 0:03:00.9]} 3... cxd4 {[%clk 0:02:59.1]}
4. Nxd4 {[%clk 0:03:01.6]} 4... Nf6 {[%clk 0:02:59.6]} 5. Nc3 {[%clk 0:03:02]}
5... e6 {[%clk 0:02:59.5]} 6. Bc4 {[%clk 0:03:01]} 6... Be7 {[%clk 0:02:59]} 7.
O-O {[%clk 0:03:00.8]} 7... O-O {[%clk 0:02:58.3]} 8. f4 {[%clk 0:03:01.1]} 8...
Nxe4 {[%clk 0:02:57.1]} 9. Nxe4 {[%clk 0:02:55.6]} 9... d5 {[%clk 0:02:56.9]}
10. Bd3 {[%clk 0:02:56.3]} 10... dxe4 {[%clk 0:02:56.5]} 11. Bxe4 {[%clk
0:02:57.2]} 11... Nd7 {[%clk 0:02:50.8]} 12. Be3 {[%clk 0:02:53.8]} 12... Nf6
{[%clk 0:02:49.9]} 13. Bf3 {[%clk 0:02:53.2]} 13... Nd5 {[%clk 0:02:48]} 14. Qe2
{[%clk 0:02:45.8]} 14... Nxe3 {[%clk 0:02:42.6]} 15. Qxe3 {[%clk 0:02:45.9]}
15... Bd7 {[%clk 0:02:41.2]} 16. Rad1 {[%clk 0:02:40.7]} 16... Qc7 {[%clk
0:02:38]} 17. Rfe1 {[%clk 0:02:37.3]} 17... Rad8 {[%clk 0:02:33.8]} 18. Kh1
{[%clk 0:02:32.9]} 18... a6 {[%clk 0:02:33]} 19. c3 {[%clk 0:02:32.1]} 19... Bd6
{[%clk 0:02:27.6]} 20. g3 {[%clk 0:02:28.8]} 20... Rfe8 {[%clk 0:02:25.1]} 21.
Qe4 {[%clk 0:02:26.3]} 21... Bc8 {[%clk 0:02:19.8]} 22. Nc2 {[%clk 0:02:17.3]}
22... Bc5 {[%clk 0:02:17.3]} 23. Ne3 {[%clk 0:02:01.4]} 23... Rxd1 {[%clk
0:02:07.9]} 24. Rxd1 {[%clk 0:02:01.3]} 24... Rd8 {[%clk 0:01:45.9]} 25. Rxd8+
{[%clk 0:02:00.3]} 25... Qxd8 {[%clk 0:01:46.8]} 26. Nc4 {[%clk 0:02:01.2]}
26... b5 {[%clk 0:01:44.8]} 27. Ne5 {[%clk 0:01:55.6]} 27... f6 {[%clk
0:01:43.7]} 28. Nd3 {[%clk 0:01:49.8]} 28... Bb6 {[%clk 0:01:40.2]} 29. Kg2
{[%clk 0:01:43.8]} 29... Qd6 {[%clk 0:01:23.2]} 30. a3 {[%clk 0:01:32.4]} 30...
g6 {[%clk 0:01:09.6]} 31. Qe2 {[%clk 0:01:29.5]} 31... Bd7 {[%clk 0:01:08.1]}
32. Nb4 {[%clk 0:01:26.9]} 32... a5 {[%clk 0:01:07.4]} 33. Nc2 {[%clk
0:01:25.3]} 33... Qc5 {[%clk 0:01:02.5]} 34. Nd4 {[%clk 0:01:22.1]} 34... e5
{[%clk 0:01:01.9]} 35. fxe5 {[%clk 0:01:11.1]} 35... fxe5 {[%clk 0:01:02.8]} 36.
b4 {[%clk 0:01:09.1]} 36... axb4 {[%clk 0:01:02.1]} 37. axb4 {[%clk 0:01:08.2]}
37... Qxc3 {[%clk 0:00:57.6]} 38. Nxb5 {[%clk 0:01:06.1]} 38... Qxb4 {[%clk
0:00:47.8]} 39. Qxe5 {[%clk 0:00:48.5]} 39... Qd2+ {[%clk 0:00:32.7]} 40. Qe2
{[%clk 0:00:25.6]} 40... Qxe2+ {[%clk 0:00:19]} 41. Bxe2 {[%clk 0:00:26.5]}
41... Bc6+ {[%clk 0:00:19.2]} 42. Kh3 {[%clk 0:00:26.9]} 42... Kg7 {[%clk
0:00:19.1]} 43. Nc3 {[%clk 0:00:26.6]} 43... Bd4 {[%clk 0:00:19.1]} 44. Na2
{[%clk 0:00:25.3]} 44... Bd5 {[%clk 0:00:18.7]} 45. Nb4 {[%clk 0:00:25.7]} 45...
Be6+ {[%clk 0:00:19]} 46. Kg2 {[%clk 0:00:25.4]} 46... Bc5 {[%clk 0:00:18.8]}
47. Nd3 {[%clk 0:00:24.7]} 47... Bd6 {[%clk 0:00:18.4]} 48. Bf3 {[%clk
0:00:24.4]} 48... Kf6 {[%clk 0:00:18.7]} 49. h3 {[%clk 0:00:23.9]} 49... h5
{[%clk 0:00:18.5]} 50. h4 {[%clk 0:00:24.2]} 50... Bf5 {[%clk 0:00:17.5]} 51.
Nf2 {[%clk 0:00:24.1]} 51... Bc5 {[%clk 0:00:17.7]} 52. Nd1 {[%clk 0:00:23.9]}
52... Bd4 {[%clk 0:00:17.4]} 53. Nf2 {[%clk 0:00:22.9]} 53... Ke5 {[%clk
0:00:17.4]} 54. Nh3 {[%clk 0:00:22.6]} 54... Be6 {[%clk 0:00:14.9]} 55. Nf4
{[%clk 0:00:22.5]} 55... Bf5 {[%clk 0:00:14.8]} 56. Be2 {[%clk 0:00:21.7]} 56...
Be4+ {[%clk 0:00:13.8]} 57. Bf3 {[%clk 0:00:20.7]} 57... Bc2 {[%clk 0:00:13.9]}
58. Ne2 {[%clk 0:00:20.3]} 58... Be3 {[%clk 0:00:13.6]} 59. Nc3 {[%clk
0:00:20.1]} 59... Kd4 {[%clk 0:00:13]} 60. Nb5+ {[%clk 0:00:20.3]} 60... Kc5
{[%clk 0:00:11.8]} 61. Nc3 {[%clk 0:00:20]} 61... Kd4 {[%clk 0:00:10.3]} 62.
Ne2+ {[%clk 0:00:20.6]} 62... Ke5 {[%clk 0:00:10.2]} 63. Nc1 {[%clk 0:00:19.6]}
63... Bxc1 {[%clk 0:00:09.9]} 64. Kf2 {[%clk 0:00:20.1]} 64... Bb2 {[%clk
0:00:08.9]} 65. Be2 {[%clk 0:00:20.4]} 65... Bd4+ {[%clk 0:00:09.1]} 66. Kg2
{[%clk 0:00:21]} 66... Be4+ {[%clk 0:00:09.1]} 67. Kh3 {[%clk 0:00:21.6]} 67...
Bf5+ {[%clk 0:00:09.5]} 68. g4 {[%clk 0:00:21.8]} 68... hxg4+ {[%clk 0:00:05.1]}
69. Bxg4 {[%clk 0:00:22.1]} 69... Kf4 {[%clk 0:00:05.4]} 70. Bxf5 {[%clk
0:00:17.5]} 70... gxf5 {[%clk 0:00:05.7]} 71. h5 {[%clk 0:00:18.2]} 71... Kg5
{[%clk 0:00:06.1]} 72. Kg3 {[%clk 0:00:19.1]} 72... Be5+ {[%clk 0:00:06.3]} 73.
Kf3 {[%clk 0:00:19.4]} 73... Kxh5 {[%clk 0:00:07.2]} 74. Ke3 {[%clk 0:00:20.3]}
74... Kg5 {[%clk 0:00:07.5]} 75. Kf3 {[%clk 0:00:21.2]} 75... f4 {[%clk
0:00:08]} 76. Kg2 {[%clk 0:00:20.2]} 76... Kg4 {[%clk 0:00:08.4]} 77. Kf2 {[%clk
0:00:21.1]} 77... f3 {[%clk 0:00:09]} 78. Ke3 {[%clk 0:00:21]} 78... Kg3 {[%clk
0:00:08.9]} 79. Ke4 {[%clk 0:00:20]} 79... f2 {[%clk 0:00:09.2]} 80. Kxe5 {[%clk
0:00:20.9]} 80... f1=Q {[%clk 0:00:09.1]} 81. Kd5 {[%clk 0:00:21.7]} 81... Qd3+
{[%clk 0:00:09]} 82. Ke5 {[%clk 0:00:22.5]} 82... Kf3 {[%clk 0:00:09.1]} 83. Ke6
{[%clk 0:00:22.7]} 83... Kf4 {[%clk 0:00:09.3]} 84. Ke7 {[%clk 0:00:23.4]} 84...
Kf5 {[%clk 0:00:09.3]} 85. Ke8 {[%clk 0:00:24.3]} 85... Kf6 {[%clk 0:00:09.2]}
86. Kf8 {[%clk 0:00:25.2]} 86... Qd8# {[%clk 0:00:09.6]} 0-1

[Event "*** SCC Grand Prix: Titled Tuesday Blitz"]
[Site "Chess.com"]
[Date "2020.06.02"]
[Round "10"]
[White "GMKrikor"]
[Black "PotapovaM"]
[Result "0-1"]
[WhiteElo "2703"]
[BlackElo "2459"]
[TimeControl "180+1"]
[EndTime "12:00:25 PDT"]
[Termination "PotapovaM won by resignation"]

1. e4 {[%clk 0:03:00.9]} 1... c5 {[%clk 0:02:58.6]} 2. Nf3 {[%clk 0:02:59.9]}
2... d6 {[%clk 0:02:59.2]} 3. d4 {[%clk 0:02:58.9]} 3... cxd4 {[%clk 0:03:00.1]}
4. Qxd4 {[%clk 0:02:58.8]} 4... Nc6 {[%clk 0:02:59.9]} 5. Bb5 {[%clk 0:02:58.1]}
5... Bd7 {[%clk 0:03:00.5]} 6. Qd3 {[%clk 0:02:56.6]} 6... g6 {[%clk 0:03:00.7]}
7. O-O {[%clk 0:02:53.6]} 7... Bg7 {[%clk 0:03:01.2]} 8. c4 {[%clk 0:02:53.8]}
8... Nf6 {[%clk 0:03:01.6]} 9. Nc3 {[%clk 0:02:51.9]} 9... O-O {[%clk
0:03:01.9]} 10. Re1 {[%clk 0:02:35.7]} 10... a6 {[%clk 0:03:01.8]} 11. Bxc6
{[%clk 0:02:35]} 11... Bxc6 {[%clk 0:03:02.7]} 12. Bd2 {[%clk 0:02:28.8]} 12...
Nd7 {[%clk 0:03:03.1]} 13. Rad1 {[%clk 0:02:24.6]} 13... Nc5 {[%clk 0:03:01.5]}
14. Qc2 {[%clk 0:02:24.8]} 14... Rc8 {[%clk 0:02:57.7]} 15. Be3 {[%clk
0:01:45.9]} 15... Ne6 {[%clk 0:02:55.5]} 16. Qb3 {[%clk 0:01:32.3]} 16... Qa5
{[%clk 0:02:25]} 17. Nd5 {[%clk 0:01:28.9]} 17... Rfe8 {[%clk 0:01:54.7]} 18.
Bb6 {[%clk 0:01:10.1]} 18... Qa4 {[%clk 0:01:53]} 19. Qxa4 {[%clk 0:01:09.3]}
19... Bxa4 {[%clk 0:01:53.9]} 20. b3 {[%clk 0:01:09.9]} 20... Bc6 {[%clk
0:01:53.7]} 21. h3 {[%clk 0:01:00.6]} 21... h6 {[%clk 0:01:39.6]} 22. Re2 {[%clk
0:00:53.4]} 22... Nf8 {[%clk 0:01:33.4]} 23. Kf1 {[%clk 0:00:32.8]} 23... Nd7
{[%clk 0:01:29.6]} 24. Bd4 {[%clk 0:00:31.7]} 24... b5 {[%clk 0:01:27.1]} 25.
Bxg7 {[%clk 0:00:22.9]} 25... Kxg7 {[%clk 0:01:28]} 26. cxb5 {[%clk 0:00:17.3]}
26... Bxb5 {[%clk 0:01:28.9]} 27. Nd4 {[%clk 0:00:12.9]} 27... Bxe2+ {[%clk
0:01:27.8]} 28. Kxe2 {[%clk 0:00:13.8]} 28... a5 {[%clk 0:01:21.1]} 29. Rd2
{[%clk 0:00:11.5]} 29... e6 {[%clk 0:01:15.9]} 30. Ne3 {[%clk 0:00:10.4]} 30...
Rc5 {[%clk 0:01:10.2]} 31. f3 {[%clk 0:00:06.8]} 31... Nb6 {[%clk 0:01:05.9]}
32. Ndc2 {[%clk 0:00:03]} 32... d5 {[%clk 0:00:42.6]} 33. exd5 {[%clk
0:00:03.9]} 33... exd5 {[%clk 0:00:43]} 34. Kf2 {[%clk 0:00:04.2]} 34... Rc3
{[%clk 0:00:34.8]} 35. Nd1 {[%clk 0:00:04.3]} 35... Rc5 {[%clk 0:00:33.4]} 36.
Nde3 {[%clk 0:00:04.8]} 36... Rec8 {[%clk 0:00:32.5]} 37. Nd4 {[%clk 0:00:05]}
37... Rc1 {[%clk 0:00:31.4]} 38. Ke2 {[%clk 0:00:03.1]} 38... Ra1 {[%clk
0:00:30.9]} 39. Nb5 {[%clk 0:00:02.5]} 39... Rcc1 {[%clk 0:00:28.1]} 40. g4
{[%clk 0:00:02]} 40... Rh1 {[%clk 0:00:25]} 41. Kd3 {[%clk 0:00:01.8]} 41...
Rxh3 {[%clk 0:00:24]} 42. Rf2 {[%clk 0:00:02.7]} 42... a4 {[%clk 0:00:22.5]} 43.
Nd4 {[%clk 0:00:02.9]} 43... axb3 {[%clk 0:00:19.5]} 44. axb3 {[%clk 0:00:03.8]}
44... Rhh1 {[%clk 0:00:18.1]} 45. Rd2 {[%clk 0:00:03.9]} 45... Rhc1 {[%clk
0:00:17]} 46. f4 {[%clk 0:00:04.1]} 46... Nd7 {[%clk 0:00:14.8]} 47. Ke2 {[%clk
0:00:03.6]} 47... Nc5 {[%clk 0:00:15.1]} 48. Kf3 {[%clk 0:00:03.3]} 48... Rc3
{[%clk 0:00:14.2]} 49. Re2 {[%clk 0:00:02.8]} 49... Nxb3 {[%clk 0:00:14.4]} 50.
Nxb3 {[%clk 0:00:02.5]} 50... Rxb3 {[%clk 0:00:15.3]} 51. Kf2 {[%clk 0:00:03]}
51... d4 {[%clk 0:00:13.1]} 52. Nc2 {[%clk 0:00:03.4]} 52... Ra2 {[%clk
0:00:10.5]} 53. Nxd4 {[%clk 0:00:03.6]} 53... Rxe2+ {[%clk 0:00:11]} 54. Nxe2
{[%clk 0:00:04.3]} 54... Rb2 {[%clk 0:00:10.7]} 55. Kf3 {[%clk 0:00:04.5]} 55...
Rb3+ {[%clk 0:00:10.9]} 56. Kf2 {[%clk 0:00:04.5]} 56... h5 {[%clk 0:00:09.8]}
57. gxh5 {[%clk 0:00:04.5]} 57... gxh5 {[%clk 0:00:10.7]} 58. Nd4 {[%clk
0:00:04.9]} 58... Ra3 {[%clk 0:00:10.3]} 59. Nf5+ {[%clk 0:00:02.2]} 59... Kg6
{[%clk 0:00:10.2]} 60. Nh4+ {[%clk 0:00:03.1]} 60... Kf6 {[%clk 0:00:10.2]} 61.
Kg2 {[%clk 0:00:03.8]} 61... Ke6 {[%clk 0:00:09.8]} 62. Kf2 {[%clk 0:00:03.4]}
62... Kd5 {[%clk 0:00:10.1]} 63. Nf5 {[%clk 0:00:02.5]} 63... Ke4 {[%clk
0:00:10.2]} 64. Ng3+ {[%clk 0:00:03]} 64... Kxf4 {[%clk 0:00:10.1]} 65. Nxh5+
{[%clk 0:00:03.9]} 65... Kg5 {[%clk 0:00:08.7]} 66. Ng3 {[%clk 0:00:03.7]} 66...
f5 {[%clk 0:00:08.7]} 67. Ne2 {[%clk 0:00:03.5]} 67... Kg4 {[%clk 0:00:07.6]}
68. Nd4 {[%clk 0:00:03.1]} 68... f4 {[%clk 0:00:07]} 69. Nc6 {[%clk 0:00:03.1]}
69... Ra2+ {[%clk 0:00:07.1]} 70. Kf1 {[%clk 0:00:03.7]} 70... Kg3 {[%clk
0:00:07.6]} 71. Nd4 {[%clk 0:00:02.8]} 71... f3 {[%clk 0:00:05.1]} 72. Nf5+
{[%clk 0:00:03.2]} 72... Kf4 {[%clk 0:00:05.4]} 73. Nd4 {[%clk 0:00:04.1]} 73...
Ke3 {[%clk 0:00:05]} 74. Nf5+ {[%clk 0:00:04.4]} 74... Ke4 {[%clk 0:00:05.2]}
75. Nd6+ {[%clk 0:00:02.9]} 75... Kf4 {[%clk 0:00:04.6]} 76. Nb5 {[%clk
0:00:02]} 76... Ra1+ {[%clk 0:00:04.2]} 77. Kf2 {[%clk 0:00:02.1]} 77... Ra2+
{[%clk 0:00:05.1]} 78. Ke1 {[%clk 0:00:02.3]} 78... Ra5 {[%clk 0:00:06]} 79. Nc3
{[%clk 0:00:02.2]} 79... Kg3 {[%clk 0:00:05.7]} 80. Ne4+ {[%clk 0:00:02.5]}
80... Kg2 {[%clk 0:00:06.2]} 81. Kd1 {[%clk 0:00:02]} 81... f2 {[%clk
0:00:05.7]} 0-1

[Event "*** SCC Grand Prix: Titled Tuesday Blitz"]
[Site "Chess.com"]
[Date "2020.06.02"]
[Round "10"]
[White "MashaFromRussia"]
[Black "OnePeculiarConundrum"]
[Result "0-1"]
[WhiteElo "2370"]
[BlackElo "2266"]
[TimeControl "180+1"]
[EndTime "12:00:25 PDT"]
[Termination "OnePeculiarConundrum won by resignation"]

1. d4 {[%clk 0:03:00.9]} 1... d5 {[%clk 0:02:59.4]} 2. c4 {[%clk 0:03:00.4]}
2... c6 {[%clk 0:02:59.3]} 3. Nf3 {[%clk 0:03:00.1]} 3... Nf6 {[%clk 0:02:59.3]}
4. Nc3 {[%clk 0:03:00.7]} 4... dxc4 {[%clk 0:02:59.4]} 5. a4 {[%clk 0:03:00.6]}
5... Bf5 {[%clk 0:02:59.2]} 6. e3 {[%clk 0:03:00.5]} 6... e6 {[%clk 0:02:58.3]}
7. Bxc4 {[%clk 0:03:00.7]} 7... Bb4 {[%clk 0:02:58.2]} 8. O-O {[%clk 0:03:00.9]}
8... Nbd7 {[%clk 0:02:57.6]} 9. Qe2 {[%clk 0:03:01.1]} 9... Ne4 {[%clk
0:02:55.1]} 10. Nxe4 {[%clk 0:02:57.5]} 10... Bxe4 {[%clk 0:02:56]} 11. Rd1
{[%clk 0:02:58.1]} 11... O-O {[%clk 0:02:55.4]} 12. b3 {[%clk 0:02:45.3]} 12...
Nb6 {[%clk 0:02:47.5]} 13. Bd3 {[%clk 0:02:42.6]} 13... Bf5 {[%clk 0:02:25.1]}
14. e4 {[%clk 0:02:37]} 14... Bg6 {[%clk 0:02:25.1]} 15. Bg5 {[%clk 0:02:32.6]}
15... Qd7 {[%clk 0:02:22.6]} 16. a5 {[%clk 0:02:30.5]} 16... Nc8 {[%clk
0:02:20.2]} 17. Ra4 {[%clk 0:02:29.2]} 17... Be7 {[%clk 0:02:17.8]} 18. Bf4
{[%clk 0:02:27.3]} 18... Bh5 {[%clk 0:02:03.8]} 19. Qe3 {[%clk 0:02:23.7]} 19...
Nd6 {[%clk 0:01:52.8]} 20. Ne5 {[%clk 0:02:18.1]} 20... Qe8 {[%clk 0:01:49.8]}
21. Rc1 {[%clk 0:02:01.4]} 21... f6 {[%clk 0:01:48.1]} 22. Nf3 {[%clk
0:01:55.6]} 22... Rd8 {[%clk 0:01:46.6]} 23. a6 {[%clk 0:01:47.1]} 23... b5
{[%clk 0:01:40.2]} 24. Ra2 {[%clk 0:01:45.2]} 24... Nc8 {[%clk 0:01:29.3]} 25.
Rac2 {[%clk 0:01:36.6]} 25... Bxf3 {[%clk 0:01:24.2]} 26. gxf3 {[%clk
0:01:36.1]} 26... e5 {[%clk 0:01:17.4]} 27. dxe5 {[%clk 0:01:29.2]} 27... fxe5
{[%clk 0:01:17.3]} 28. Bxe5 {[%clk 0:01:24.8]} 28... c5 {[%clk 0:01:07.1]} 29.
Bg3 {[%clk 0:01:14.3]} 29... Qd7 {[%clk 0:01:01.6]} 30. Be2 {[%clk 0:01:11.7]}
30... Qc6 {[%clk 0:00:56]} 31. f4 {[%clk 0:00:48.1]} 31... Qxa6 {[%clk
0:00:47.3]} 32. e5 {[%clk 0:00:47.7]} 32... Qb6 {[%clk 0:00:40.9]} 33. Bg4
{[%clk 0:00:42.8]} 33... a6 {[%clk 0:00:37.8]} 34. f5 {[%clk 0:00:41.8]} 34...
Na7 {[%clk 0:00:31.6]} 35. Qe4 {[%clk 0:00:30.4]} 35... Qc6 {[%clk 0:00:29.5]}
36. Bf3 {[%clk 0:00:27.3]} 36... Qxe4 {[%clk 0:00:28.7]} 37. Bxe4 {[%clk
0:00:28.2]} 37... Rd4 {[%clk 0:00:29.2]} 38. f3 {[%clk 0:00:28.2]} 38... Bg5
{[%clk 0:00:20.4]} 39. Ra1 {[%clk 0:00:26.9]} 39... Be3+ {[%clk 0:00:20.4]} 40.
Kg2 {[%clk 0:00:25.3]} 40... c4 {[%clk 0:00:16.5]} 41. bxc4 {[%clk 0:00:24.6]}
41... bxc4 {[%clk 0:00:16.8]} 42. Rxa6 {[%clk 0:00:24.5]} 42... Nb5 {[%clk
0:00:16.6]} 43. Rc6 {[%clk 0:00:22.7]} 43... c3 {[%clk 0:00:16.5]} 44. e6 {[%clk
0:00:19.8]} 44... Rd2+ {[%clk 0:00:15.6]} 45. Kh3 {[%clk 0:00:17.6]} 45... Rxc2
{[%clk 0:00:15.5]} 46. Bxc2 {[%clk 0:00:18.5]} 46... Nd4 {[%clk 0:00:16]} 47.
Rxc3 {[%clk 0:00:17]} 47... Bd2 {[%clk 0:00:10.8]} 48. Rd3 {[%clk 0:00:11]}
48... Nxc2 {[%clk 0:00:10.8]} 49. Rxd2 {[%clk 0:00:10.9]} 49... Ne3 {[%clk
0:00:11.1]} 50. Rd7 {[%clk 0:00:07.1]} 50... Nxf5 {[%clk 0:00:10]} 51. Kg2
{[%clk 0:00:05]} 51... Re8 {[%clk 0:00:09.5]} 52. f4 {[%clk 0:00:03.9]} 52...
Rxe6 {[%clk 0:00:09.3]} 53. Kf3 {[%clk 0:00:04.3]} 53... Re7 {[%clk 0:00:06.9]}
54. Rd8+ {[%clk 0:00:03.8]} 54... Kf7 {[%clk 0:00:07.2]} 55. Kg4 {[%clk
0:00:04.1]} 55... g6 {[%clk 0:00:07.6]} 56. h4 {[%clk 0:00:03.7]} 56... Kf6
{[%clk 0:00:07.7]} 57. Bf2 {[%clk 0:00:03.4]} 57... h5+ {[%clk 0:00:08]} 58. Kf3
{[%clk 0:00:03.2]} 58... Rb7 {[%clk 0:00:07.6]} 59. Rf8+ {[%clk 0:00:03.4]}
59... Kg7 {[%clk 0:00:07.7]} 60. Rc8 {[%clk 0:00:03.5]} 60... Rb3+ {[%clk
0:00:08.1]} 61. Ke4 {[%clk 0:00:03.5]} 61... Rh3 {[%clk 0:00:07.8]} 62. Rc7+
{[%clk 0:00:02.3]} 62... Kh6 {[%clk 0:00:07.9]} 63. Bc5 {[%clk 0:00:02.7]} 63...
Ng3+ {[%clk 0:00:03.6]} 64. Ke5 {[%clk 0:00:02]} 64... g5 {[%clk 0:00:01.8]} 65.
fxg5+ {[%clk 0:00:02.1]} 65... Kg6 {[%clk 0:00:02.3]} 66. Rc6+ {[%clk
0:00:02.5]} 66... Kf7 {[%clk 0:00:02.4]} 67. Rf6+ {[%clk 0:00:02.3]} 67... Kg7
{[%clk 0:00:02.9]} 68. Bf8+ {[%clk 0:00:02.5]} 68... Kg8 {[%clk 0:00:03.4]} 69.
g6 {[%clk 0:00:02.1]} 69... Rxh4 {[%clk 0:00:03.5]} 70. g7 {[%clk 0:00:02.2]}
70... Rg4 {[%clk 0:00:02.5]} 71. Kd6 {[%clk 0:00:01.5]} 71... Ne4+ {[%clk
0:00:01.1]} 72. Ke6 {[%clk 0:00:01.8]} 72... Nxf6 {[%clk 0:00:02]} 73. Kxf6
{[%clk 0:00:02.7]} 73... h4 {[%clk 0:00:02.5]} 74. Be7 {[%clk 0:00:02.2]} 74...
Rxg7 {[%clk 0:00:02.3]} 75. Bd6 {[%clk 0:00:02.4]} 75... h3 {[%clk 0:00:02.7]}
76. Bh2 {[%clk 0:00:02.8]} 76... Rg2 {[%clk 0:00:03.4]} 77. Bd6 {[%clk
0:00:02.9]} 77... h2 {[%clk 0:00:04.3]} 0-1

[Event "*** SCC Grand Prix: Titled Tuesday Blitz"]
[Site "Chess.com"]
[Date "2020.06.02"]
[Round "10"]
[White "OK97"]
[Black "mbojan"]
[Result "1/2-1/2"]
[WhiteElo "2769"]
[BlackElo "2645"]
[TimeControl "180+1"]
[EndTime "12:00:32 PDT"]
[Termination "Game drawn by repetition"]

1. Nf3 {[%clk 0:03:00.9]} 1... Nf6 {[%clk 0:02:59.7]} 2. c4 {[%clk 0:03:00.3]}
2... g6 {[%clk 0:02:58.8]} 3. Nc3 {[%clk 0:02:57.4]} 3... d5 {[%clk 0:02:58.1]}
4. cxd5 {[%clk 0:02:57.4]} 4... Nxd5 {[%clk 0:02:59]} 5. h4 {[%clk 0:02:58]}
5... Bg7 {[%clk 0:02:57.3]} 6. e4 {[%clk 0:02:57.3]} 6... Nxc3 {[%clk 0:02:52]}
7. dxc3 {[%clk 0:02:58.2]} 7... Qxd1+ {[%clk 0:02:51.2]} 8. Kxd1 {[%clk
0:02:59.1]} 8... Bg4 {[%clk 0:02:48.4]} 9. Kc2 {[%clk 0:02:55.5]} 9... Nd7
{[%clk 0:02:40.7]} 10. Be3 {[%clk 0:02:42.3]} 10... O-O {[%clk 0:02:17.8]} 11.
Nd2 {[%clk 0:02:23.6]} 11... Be6 {[%clk 0:02:13.7]} 12. h5 {[%clk 0:02:19.8]}
12... Rfd8 {[%clk 0:02:13.5]} 13. f3 {[%clk 0:02:12.9]} 13... Ne5 {[%clk
0:01:57.8]} 14. hxg6 {[%clk 0:02:11.8]} 14... hxg6 {[%clk 0:01:57.4]} 15. Be2
{[%clk 0:02:07.8]} 15... b6 {[%clk 0:01:41.7]} 16. a4 {[%clk 0:01:44.9]} 16...
a5 {[%clk 0:01:41]} 17. Rh4 {[%clk 0:01:34.7]} 17... Bf6 {[%clk 0:01:39.4]} 18.
Rh2 {[%clk 0:01:34.6]} 18... Bg7 {[%clk 0:01:19.3]} 19. Rah1 {[%clk 0:01:25.4]}
19... Rd6 {[%clk 0:01:14.5]} 20. Nb3 {[%clk 0:00:43.4]} 20... Bc4 {[%clk
0:01:01.2]} 21. Nc1 {[%clk 0:00:20.4]} 21... Bxe2 {[%clk 0:00:51.8]} 22. Nxe2
{[%clk 0:00:21.3]} 22... Nc4 {[%clk 0:00:52.1]} 23. Bc1 {[%clk 0:00:19.9]} 23...
Rad8 {[%clk 0:00:51.5]} 24. b3 {[%clk 0:00:20.4]} 24... Rd2+ {[%clk 0:00:31.5]}
25. Bxd2 {[%clk 0:00:19.5]} 25... Rxd2+ {[%clk 0:00:32.4]} 26. Kc1 {[%clk
0:00:20.1]} 26... Rxe2 {[%clk 0:00:32.3]} 27. bxc4 {[%clk 0:00:20.3]} 27... Be5
{[%clk 0:00:32.5]} 28. Rh4 {[%clk 0:00:13.1]} 28... Rxg2 {[%clk 0:00:32.4]} 29.
Rd1 {[%clk 0:00:11.8]} 29... Bxc3 {[%clk 0:00:25.2]} 30. Rd8+ {[%clk 0:00:11.4]}
30... Kg7 {[%clk 0:00:25.4]} 31. Rhh8 {[%clk 0:00:10.7]} 31... Kf6 {[%clk
0:00:23.2]} 32. Rhe8 {[%clk 0:00:10.1]} 32... Bb4 {[%clk 0:00:19.4]} 33. f4
{[%clk 0:00:08.9]} 33... g5 {[%clk 0:00:16.3]} 34. e5+ {[%clk 0:00:04.1]} 34...
Kf5 {[%clk 0:00:15.7]} 35. fxg5 {[%clk 0:00:04.6]} 35... Rxg5 {[%clk 0:00:15.4]}
36. Rf8 {[%clk 0:00:03]} 36... Ke6 {[%clk 0:00:15.4]} 37. Rc8 {[%clk 0:00:03]}
37... Rxe5 {[%clk 0:00:11.9]} 38. Rxc7 {[%clk 0:00:03.4]} 38... Bc5 {[%clk
0:00:11.5]} 39. Rc6+ {[%clk 0:00:03.5]} 39... Bd6 {[%clk 0:00:08.5]} 40. Rcc8
{[%clk 0:00:04.4]} 40... Re2 {[%clk 0:00:06]} 41. Kd1 {[%clk 0:00:04.6]} 41...
Ra2 {[%clk 0:00:05.8]} 42. Rc6 {[%clk 0:00:04.9]} 42... Rxa4 {[%clk 0:00:05.8]}
43. Rxb6 {[%clk 0:00:05.2]} 43... Rxc4 {[%clk 0:00:05.8]} 44. Ra8 {[%clk
0:00:05.2]} 44... Rc5 {[%clk 0:00:05]} 45. Rba6 {[%clk 0:00:05.1]} 45... Rd5+
{[%clk 0:00:05.9]} 46. Ke2 {[%clk 0:00:05]} 46... Re5+ {[%clk 0:00:06.2]} 47.
Kd3 {[%clk 0:00:05.1]} 47... f5 {[%clk 0:00:06.3]} 48. Rxa5 {[%clk 0:00:04.7]}
48... Rxa5 {[%clk 0:00:06.6]} 49. Rxa5 {[%clk 0:00:05.6]} 49... Kf6 {[%clk
0:00:07.1]} 50. Kd4 {[%clk 0:00:05.4]} 50... Ke6 {[%clk 0:00:07.8]} 51. Ra6
{[%clk 0:00:05.4]} 51... Kf6 {[%clk 0:00:08.3]} 52. Kd5 {[%clk 0:00:05.8]} 52...
f4 {[%clk 0:00:08.9]} 53. Ke4 {[%clk 0:00:06]} 53... Ke6 {[%clk 0:00:09.8]} 54.
Ra5 {[%clk 0:00:06.1]} 54... Kf6 {[%clk 0:00:10.3]} 55. Rh5 {[%clk 0:00:06.7]}
55... Ke6 {[%clk 0:00:11]} 56. Rh6+ {[%clk 0:00:07.2]} 56... Kf7 {[%clk
0:00:11]} 57. Kf5 {[%clk 0:00:07.7]} 57... Kg7 {[%clk 0:00:10.1]} 58. Rg6+
{[%clk 0:00:07.7]} 58... Kf7 {[%clk 0:00:10.5]} 59. Rg2 {[%clk 0:00:07.3]} 59...
Ke8 {[%clk 0:00:11]} 60. Ke6 {[%clk 0:00:07.4]} 60... Kd8 {[%clk 0:00:11.4]} 61.
Rc2 {[%clk 0:00:07.4]} 61... Bc7 {[%clk 0:00:11.4]} 62. Rd2+ {[%clk 0:00:06.2]}
62... Bd6 {[%clk 0:00:11.9]} 63. Rc2 {[%clk 0:00:06.3]} 63... Bc7 {[%clk
0:00:12.2]} 64. Ra2 {[%clk 0:00:06.8]} 64... Bd6 {[%clk 0:00:12.7]} 65. Rb2
{[%clk 0:00:06.1]} 65... Kc7 {[%clk 0:00:12.9]} 66. Kd5 {[%clk 0:00:04.9]} 66...
Kd7 {[%clk 0:00:13.2]} 67. Rb7+ {[%clk 0:00:04.7]} 67... Bc7 {[%clk 0:00:13.8]}
68. Ra7 {[%clk 0:00:04.7]} 68... e6+ {[%clk 0:00:14.1]} 69. Ke4 {[%clk
0:00:04.2]} 69... Kc6 {[%clk 0:00:14.1]} 70. Ra6+ {[%clk 0:00:04.7]} 70... Kd7
{[%clk 0:00:14.7]} 71. Ra2 {[%clk 0:00:05.2]} 71... Bd6 {[%clk 0:00:15]} 72. Rd2
{[%clk 0:00:05.5]} 72... Ke7 {[%clk 0:00:15.5]} 73. Rf2 {[%clk 0:00:05.8]} 73...
Kf6 {[%clk 0:00:15.3]} 74. Rf3 {[%clk 0:00:06.4]} 74... Ke7 {[%clk 0:00:15.7]}
75. Rf1 {[%clk 0:00:06.7]} 75... Kf6 {[%clk 0:00:16.2]} 76. Rg1 {[%clk 0:00:07]}
76... Kf7 {[%clk 0:00:16.4]} 77. Rg4 {[%clk 0:00:06.4]} 77... Kf6 {[%clk
0:00:16.5]} 78. Rg2 {[%clk 0:00:05.8]} 78... Kf7 {[%clk 0:00:16.8]} 79. Rd2
{[%clk 0:00:06.3]} 79... Ke7 {[%clk 0:00:17.2]} 80. Kf3 {[%clk 0:00:05.6]} 80...
Kd7 {[%clk 0:00:16.8]} 81. Ke4 {[%clk 0:00:05.9]} 81... Ke7 {[%clk 0:00:17.2]}
1/2-1/2